lending/lending_fUSD_20250621
["ID","MTS","AMOUNT","RATE_DAILY","PERIOD"]
[366820607,1750474259638,-500.0,0.000277,30]
[366820608,1750474259648,-500.0,0.000277,30]
[366820609,1750474259660,-500.0,0.000277,30]
[366820610,1750474259671,-500.0,0.000277,30]
[366820611,1750474259681,-519.5929367,0.000277,30]
[366820612,1750474259692,-248.02631311,0.000277,30]
[366820613,1750474259703,-161.88941425,0.000277,30]
[366820614,1750474259713,-5024.63130182,0.000277,2]
[366820615,1750474259724,-338.51975065,0.000277,30]
[366820616,1750474259734,-14068.67,0.000277,2]
[366820617,1750474259746,-77149.28,0.000277,7]
[366820618,1750474259756,-1757.45,0.000277,2]
[366820619,1750474259767,-2110.0,0.00027719,2]
[366820620,1750474259776,-193.0,0.0002773,2]
[366820621,1750474259787,-369.41174546,0.00027767,2]
[366820622,1750474259812,-1500.0,0.00027768,5]
[366820623,1750474259824,-490.0,0.00027785,4]
[366820624,1750474259836,-490.0,0.00027785,4]
[366820625,1750474259848,-490.0,0.00027785,4]
[366820626,1750474259859,-490.0,0.00027785,4]
[366820627,1750474259872,-800.16756629,0.00027797,17]
[366820628,1750474259883,-327.56477272,0.00027805,2]
[366820629,1750474259895,-3934.15418369,0.00027805,2]
[366820630,1750474259906,-159.08855488,0.00027805,2]
[366820631,1750474259918,-22182.67136559,0.00027856,2]
[366820632,1750474259929,-490.0,0.00027867,4]
[366820633,1750474259940,-490.0,0.00027867,4]
[366820634,1750474259951,-490.0,0.00027867,4]
[366820635,1750474259962,-564.94058252,0.00027867,4]
[366820636,1750474259972,-1100.35,0.00027867,4]
[366820637,1750474259984,-490.0,0.00027867,4]
[366820638,1750474259995,-590.0500321,0.00027867,4]
[366820639,1750474260006,-953.12,0.00027867,4]
[366820640,1750474260017,-490.0,0.00027867,4]
[366820641,1750474260028,-3269.61,0.00027867,4]
[366820642,1750474260040,-552.55,0.00027867,4]
[366820643,1750474260054,-1038.32,0.00027867,4]
[366820644,1750474260065,-513.25016852,0.00027867,4]
[366820645,1750474260076,-913.56,0.00027867,4]
[366820646,1750474260088,-488.35412176,0.00027867,4]
[366820647,1750474260100,-490.0,0.00027867,4]
[366820648,1750474260111,-490.0,0.00027867,4]
[366820649,1750474260123,-490.0,0.00027867,4]
[366820650,1750474260136,-591.39,0.00027867,4]
[366820651,1750474260407,-606.99244989,0.00027867,4]
[366820652,1750474260420,-590.41,0.00027867,4]
[366820653,1750474260430,-490.0,0.00027867,4]
[366820654,1750474260440,-490.0,0.00027867,4]
[366820655,1750474260450,-490.0,0.00027867,4]
[366820656,1750474260460,-1449.52,0.00027867,4]
[366820657,1750474260470,-490.0,0.00027867,4]
[366820658,1750474260480,-490.0,0.00027867,4]
[366820659,1750474260491,-248.81341525,0.00027867,4]
[366820660,1750474260501,-697.72,0.00027867,4]
[366820661,1750474260512,-490.0,0.00027867,4]
[366820662,1750474260522,-648.37,0.00027867,4]
[366820663,1750474260532,-490.0,0.00027867,4]
[366820664,1750474260543,-1005.71,0.00027867,4]
[366820665,1750474260553,-684.99,0.00027867,2]
[366820666,1750474260563,-408.1988707,0.00027867,4]
[366820667,1750474260573,-490.0,0.00027867,4]
[366820668,1750474260588,-526.12,0.00027867,4]
[366820669,1750474260599,-490.0,0.00027867,4]
[366820670,1750474260610,-522.32,0.00027867,4]
[366820671,1750474260620,-4046.66,0.00027867,4]
[366820672,1750474260630,-602.57,0.00027867,4]
[366820673,1750474260641,-490.0,0.00027868,4]
[366820674,1750474260651,-490.0,0.00027868,4]
[366820675,1750474260661,-490.0,0.00027868,4]
[366820676,1750474260672,-629.43,0.00027868,4]
[366820677,1750474260682,-490.0,0.00027868,4]
[366820678,1750474260692,-490.0,0.00027868,4]
[366820679,1750474260703,-490.0,0.00027868,4]
[366820680,1750474260713,-490.0,0.00027868,4]
[366820681,1750474260723,-490.0,0.00027868,4]
[366820682,1750474260734,-490.0,0.00027868,4]
[366820683,1750474260744,-490.0,0.00027868,4]
[366820684,1750474260755,-490.0,0.00027868,4]
[366820685,1750474260765,-490.0,0.00027868,4]
[366820686,1750474260775,-490.0,0.00027868,4]
[366820687,1750474260786,-610.49,0.00027868,4]
[366820688,1750474260796,-490.0,0.00027868,4]
[366820689,1750474260807,-490.0,0.00027868,4]
[366820690,1750474260817,-490.0,0.00027868,4]
[366820691,1750474260827,-490.0,0.00027868,4]
[366820692,1750474260837,-460.0,0.00027868,4]
[366820693,1750474260848,-490.0,0.00027868,4]
[366820694,1750474260858,-503.39243483,0.00027868,5]
[366820695,1750474260868,-1500.0,0.00027868,5]
[366820696,1750474260878,-1000.0,0.00027869,2]
[366820697,1750474260889,-13690.37341023,0.000279,2]
[366820698,1750474260899,-14012.21027077,0.000279,2]
[366820699,1750474260909,-490.0,0.00027905,4]
[366820700,1750474260920,-490.0,0.00027905,4]
[366820701,1750474260930,-490.0,0.00027905,4]
[366820702,1750474260940,-490.0,0.00027905,4]
[366820703,1750474260950,-490.0,0.00027905,4]
[366820704,1750474260961,-490.0,0.00027905,4]
[366820705,1750474260971,-490.0,0.00027905,4]
[366820706,1750474260981,-825.65,0.00027905,4]
[366820707,1750474260992,-1964.92,0.00027905,4]
[366820708,1750474261002,-490.0,0.00027905,4]
[366820709,1750474261012,-560.31,0.00027905,4]
[366820710,1750474261027,-490.0,0.00027905,4]
[366820711,1750474261037,-490.0,0.00027905,4]
[366820712,1750474261050,-860.96,0.00027905,4]
[366820713,1750474261060,-503.75,0.00027905,4]
[366820714,1750474261071,-2249.28,0.00027905,2]
[366820715,1750474261081,-664.46,0.00027905,4]
[366820716,1750474261091,-490.0,0.00027905,4]
[366820717,1750474261102,-490.0,0.00027905,4]
[366820718,1750474261112,-490.0,0.00027905,4]
[366820719,1750474261123,-490.0,0.00027905,4]
[366820720,1750474261133,-610.22,0.00027905,4]
[366820721,1750474261143,-830.0,0.00027905,4]
[366820722,1750474261153,-527.04315185,0.00027905,4]
[366820723,1750474261163,-490.0,0.00027905,4]
[366820724,1750474261174,-490.0,0.00027905,4]
[366820725,1750474261184,-1694.66,0.00027905,4]
[366820726,1750474261194,-521.61179044,0.00027905,4]
[366820727,1750474261205,-490.0,0.00027905,4]
[366820728,1750474261215,-800.56,0.00027905,4]
[366820729,1750474261224,-490.0,0.00027905,4]
[366820730,1750474261235,-490.0,0.00027905,4]
[366820731,1750474261245,-490.0,0.00027905,4]
[366820732,1750474261255,-490.0,0.00027905,4]
[366820733,1750474261265,-490.0,0.00027905,4]
[366820734,1750474261275,-490.0,0.00027905,4]
[366820735,1750474261286,-490.0,0.00027905,4]
[366820736,1750474261295,-490.0,0.00027905,4]
[366820737,1750474261306,-168.0,0.00027926,2]
[366820738,1750474261316,-200.4,0.00027963,120]
[366820739,1750474261326,-168.0,0.00027981,2]
[366820740,1750474261336,-278.7,0.00028,2]
[366820741,1750474261346,-1227.77947601,0.00028,14]
[366820742,1750474261356,-45695.01379301,0.00028,2]
[366820743,1750474261366,-12856.87801818,0.00028,2]
[366820744,1750474261376,-257.13756037,0.00028,2]
[366820745,1750474261386,-2161.883809,0.00028,2]
[366820746,1750474261396,-160.50009943,0.00028001,2]
[366820747,1750474261406,-151.0,0.00028015,2]
[366820748,1750474261417,-150.0,0.00028019,2]
[366820749,1750474261426,-4627.0998444,0.0002802,2]
[366820750,1750474261437,-101722.8943197,0.0002802,2]
[366820751,1750474261447,-3552.4928297,0.0002802,2]
[366820752,1750474261456,-455.2,0.00028047,2]
[366820753,1750474261480,-13690.37341023,0.00028057,2]
[366820754,1750474261490,-259.79,0.00028058,2]
[366820755,1750474261501,-490.0,0.00028059,4]
[366820756,1750474261512,-490.0,0.00028059,4]
[366820757,1750474261523,-490.0,0.00028059,4]
[366820758,1750474261534,-193.0,0.00028066,2]
[366820759,1750474261545,-1500.0,0.00028068,5]
[366820760,1750474261556,-1500.0,0.00028068,5]
[366820761,1750474261567,-163.55,0.0002807,2]
[366820762,1750474261577,-2000.0,0.00028078,2]
[366820763,1750474261588,-2000.0,0.00028078,2]
[366820764,1750474261599,-700.0,0.00028086,7]
[366820765,1750474261610,-504.92556301,0.00028116,2]
[366820766,1750474261620,-505.91538005,0.00028116,5]
[366820767,1750474261632,-2000.0,0.00028116,5]
[366820768,1750474261643,-150.0,0.00028118,2]
[366820769,1750474261653,-621.93105452,0.00028125,2]
[366820770,1750474261664,-168.0,0.00028125,2]
[366820771,1750474261675,-22182.67136559,0.00028127,2]
[366820772,1750474261686,-490.0,0.00028141,4]
[366820773,1750474261696,-402.58383277,0.00028141,4]
[366820774,1750474261707,-490.0,0.00028141,4]
[366820775,1750474261717,-1100.35,0.00028141,4]
[366820776,1750474261728,-490.0,0.00028141,4]
[366820777,1750474261738,-953.12,0.00028141,4]
[366820778,1750474261750,-490.0,0.00028141,4]
[366820779,1750474261761,-3269.61,0.00028141,4]
[366820780,1750474261772,-552.55,0.00028141,4]
[366820781,1750474261783,-1038.32,0.00028141,4]
[366820782,1750474261793,-913.56,0.00028141,4]
[366820783,1750474261804,-490.0,0.00028141,4]
[366820784,1750474261815,-490.0,0.00028141,4]
[366820785,1750474261827,-490.0,0.00028141,4]
[366820786,1750474261839,-591.39,0.00028141,4]
[366820787,1750474261849,-590.41,0.00028141,4]
[366820788,1750474261860,-490.0,0.00028141,4]
[366820789,1750474261871,-490.0,0.00028141,4]
[366820790,1750474261881,-490.0,0.00028141,4]
[366820791,1750474261898,-1449.52,0.00028141,4]
[366820792,1750474261909,-490.0,0.00028141,4]
[366820793,1750474261920,-490.0,0.00028141,4]
[366820794,1750474261931,-697.72,0.00028141,4]
[366820795,1750474261942,-490.0,0.00028141,4]
[366820796,1750474261953,-648.37,0.00028141,4]
[366820797,1750474261963,-490.0,0.00028141,4]
[366820798,1750474261974,-1005.71,0.00028141,4]
[366820799,1750474261985,-684.99,0.00028141,2]
[366820800,1750474261996,-490.0,0.00028141,4]
[366820801,1750474262006,-526.12,0.00028141,4]
[366820802,1750474262017,-490.0,0.00028141,4]
[366820803,1750474262029,-522.32,0.00028141,4]
[366820804,1750474262039,-4046.66,0.00028141,4]
[366820805,1750474262054,-602.57,0.00028141,4]
[366820806,1750474262064,-603.39527678,0.00028142,4]
[366820807,1750474262075,-490.0,0.00028142,4]
[366820808,1750474262086,-506.81732881,0.00028142,4]
[366820809,1750474262097,-629.43,0.00028142,4]
[366820810,1750474262107,-490.0,0.00028142,4]
[366820811,1750474262118,-488.60366217,0.00028142,4]
[366820812,1750474262129,-235.92929626,0.00028142,4]
[366820813,1750474262140,-490.0,0.00028142,4]
[366820814,1750474262150,-490.0,0.00028142,4]
[366820815,1750474262160,-490.0,0.00028142,4]
[366820816,1750474262171,-266.6427923,0.00028142,4]
[366820817,1750474262181,-490.0,0.00028142,4]
[366820818,1750474262192,-547.34650071,0.00028142,4]
[366820819,1750474262202,-610.49,0.00028142,4]
[366820820,1750474262212,-490.0,0.00028142,4]
[366820821,1750474262222,-490.0,0.00028142,4]
[366820822,1750474262233,-490.0,0.00028142,4]
[366820823,1750474262244,-533.2287203,0.00028142,4]
[366820824,1750474262254,-400.0,0.0002817,2]
[366820825,1750474262264,-700.0,0.0002817,2]
[366820826,1750474262275,-490.0,0.00028179,4]
[366820827,1750474262286,-490.0,0.00028179,4]
[366820828,1750474262298,-490.0,0.00028179,4]
[366820829,1750474262310,-490.0,0.00028179,4]
[366820830,1750474262320,-407.44,0.00028179,4]
[366820831,1750474262332,-490.0,0.00028179,4]
[366820832,1750474262344,-825.65,0.00028179,4]
[366820833,1750474262356,-1964.92,0.00028179,4]
[366820834,1750474262366,-490.0,0.00028179,4]
[366820835,1750474262377,-560.31,0.00028179,4]
[366820836,1750474262388,-490.0,0.00028179,4]
[366820837,1750474262398,-490.0,0.00028179,4]
[366820838,1750474262408,-860.96,0.00028179,4]
[366820839,1750474262419,-503.75,0.00028179,4]
[366820840,1750474262429,-2249.28,0.00028179,2]
[366820841,1750474262439,-664.46,0.00028179,4]
[366820842,1750474262451,-490.0,0.00028179,4]
[366820843,1750474262461,-490.0,0.00028179,4]
[366820844,1750474262471,-162.01,0.00028179,4]
[366820845,1750474262483,-490.0,0.00028179,4]
[366820846,1750474262494,-610.22,0.00028179,4]
[366820847,1750474262505,-830.0,0.00028179,4]
[366820848,1750474262515,-490.0,0.00028179,4]
[366820849,1750474262526,-490.0,0.00028179,4]
[366820850,1750474262537,-1694.66,0.00028179,4]
[366820851,1750474262548,-490.0,0.00028179,4]
[366820852,1750474262558,-800.56,0.00028179,4]
[366820853,1750474262569,-490.0,0.00028179,4]
[366820854,1750474262580,-490.0,0.00028179,4]
[366820855,1750474262591,-490.0,0.00028179,4]
[366820856,1750474262601,-490.0,0.00028179,4]
[366820857,1750474262612,-490.0,0.00028179,4]
[366820858,1750474262622,-490.0,0.00028179,4]
[366820859,1750474262633,-250.58,0.00028188,120]
[366820860,1750474262643,-387.0,0.000282,2]
[366820861,1750474262654,-500.8948,0.000282,2]
[366820862,1750474262664,-500.8948,0.000282,2]
[366820863,1750474262675,-2169.036,0.000282,2]
[366820864,1750474262685,-2169.036,0.000282,2]
[366820865,1750474262695,-963.7681,0.000282,2]
[366820866,1750474262705,-963.7681,0.000282,2]
[366820867,1750474262716,-1311.8502,0.000282,2]
[366820868,1750474262727,-1311.8502,0.000282,2]
[366820869,1750474262738,-150.99,0.00028203,2]
[366820870,1750474262748,-1691.471643,0.00028218,60]
[366820871,1750474262759,-2110.0,0.00028219,2]
[366820872,1750474262770,-207.0,0.0002825,12]
[366820873,1750474262780,-223.0315306,0.00028279,2]
[366820874,1750474262791,-162.380719,0.00028279,2]
[366820875,1750474262802,-800.16756629,0.00028279,18]
[366820876,1750474262812,-859.52,0.000283,2]
[366820877,1750474262822,-867.61938455,0.000283,2]
[366820878,1750474262832,-1674.38,0.000283,2]
[366820879,1750474262842,-4522.89,0.000283,2]
[366820880,1750474262852,-870.54329516,0.00028308,2]
[366820881,1750474262863,-2000.0,0.00028316,5]
[366820882,1750474262872,-321.0,0.0002833,2]
[366820883,1750474262884,-182.88068186,0.00028333,4]
[366820884,1750474262895,-490.0,0.00028333,4]
[366820885,1750474262907,-490.0,0.00028333,4]
[366820886,1750474263011,-22182.67136559,0.00028399,2]
[366820887,1750474263023,-490.0,0.00028415,4]
[366820888,1750474263033,-490.0,0.00028415,4]
[366820889,1750474263043,-1100.35,0.00028415,4]
[366820890,1750474263058,-490.0,0.00028415,4]
[366820891,1750474263069,-953.12,0.00028415,4]
[366820892,1750474263080,-490.0,0.00028415,4]
[366820893,1750474263091,-3269.61,0.00028415,4]
[366820894,1750474263101,-552.55,0.00028415,4]
[366820895,1750474263112,-1038.32,0.00028415,4]
[366820896,1750474263123,-913.56,0.00028415,4]
[366820897,1750474263133,-490.0,0.00028415,4]
[366820898,1750474263144,-617.5059607,0.00028415,4]
[366820899,1750474263158,-490.0,0.00028415,4]
[366820900,1750474263176,-591.39,0.00028415,4]
[366820901,1750474263187,-590.41,0.00028415,4]
[366820902,1750474263197,-490.0,0.00028415,4]
[366820903,1750474263208,-490.0,0.00028415,4]
[366820904,1750474263218,-550.01031356,0.00028415,4]
[366820905,1750474263228,-1449.52,0.00028415,4]
[366820906,1750474263238,-490.0,0.00028415,4]
[366820907,1750474263248,-490.0,0.00028415,4]
[366820908,1750474263259,-697.72,0.00028415,4]
[366820909,1750474263269,-490.0,0.00028415,4]
[366820910,1750474263279,-648.37,0.00028415,4]
[366820911,1750474263289,-490.0,0.00028415,4]
[366820912,1750474263300,-1005.71,0.00028415,4]
[366820913,1750474263310,-684.99,0.00028415,2]
[366820914,1750474263321,-490.0,0.00028415,4]
[366820915,1750474263331,-526.12,0.00028415,4]
[366820916,1750474263343,-490.0,0.00028415,4]
[366820917,1750474263353,-522.32,0.00028415,4]
[366820918,1750474263363,-4046.66,0.00028415,4]
[366820919,1750474263373,-602.57,0.00028415,4]
[366820920,1750474263383,-615.57120423,0.00028416,4]
[366820921,1750474263393,-629.43,0.00028416,4]
[366820922,1750474263403,-341.07789604,0.00028416,4]
[366820923,1750474263413,-490.0,0.00028416,4]
[366820924,1750474263423,-490.0,0.00028416,4]
[366820925,1750474263433,-490.0,0.00028416,4]
[366820926,1750474263443,-490.0,0.00028416,4]
[366820927,1750474263453,-610.49,0.00028416,4]
[366820928,1750474263464,-490.0,0.00028416,4]
[366820929,1750474263474,-490.0,0.00028416,4]
[366820930,1750474263484,-490.0,0.00028416,4]
[366820931,1750474263495,-505.19471686,0.00028416,5]
[366820932,1750474263511,-5133.4413873,0.00028433,2]
[366820933,1750474263522,-299.17690517,0.00028453,4]
[366820934,1750474263532,-427.09647192,0.00028453,4]
[366820935,1750474263542,-490.0,0.00028453,4]
[366820936,1750474263552,-490.0,0.00028453,4]
[366820937,1750474263562,-490.0,0.00028453,4]
[366820938,1750474263573,-825.65,0.00028453,4]
[366820939,1750474263584,-1964.92,0.00028453,4]
[366820940,1750474263594,-490.0,0.00028453,4]
[366820941,1750474263605,-560.31,0.00028453,4]
[366820942,1750474263615,-490.0,0.00028453,4]
[366820943,1750474263624,-490.0,0.00028453,4]
[366820944,1750474263634,-860.96,0.00028453,4]
[366820945,1750474263644,-503.75,0.00028453,4]
[366820946,1750474263654,-2249.28,0.00028453,2]
[366820947,1750474263664,-664.46,0.00028453,4]
[366820948,1750474263674,-490.0,0.00028453,4]
[366820949,1750474263685,-490.0,0.00028453,4]
[366820950,1750474263695,-610.22,0.00028453,4]
[366820951,1750474263706,-830.0,0.00028453,4]
[366820952,1750474263718,-490.0,0.00028453,4]
[366820953,1750474263728,-490.0,0.00028453,4]
[366820954,1750474263738,-1694.66,0.00028453,4]
[366820955,1750474263749,-490.0,0.00028453,4]
[366820956,1750474263759,-800.56,0.00028453,4]
[366820957,1750474263769,-490.0,0.00028453,4]
[366820958,1750474263778,-490.0,0.00028453,4]
[366820959,1750474263788,-490.0,0.00028453,4]
[366820960,1750474263798,-490.0,0.00028453,4]
[366820961,1750474263808,-490.0,0.00028453,4]
[366820962,1750474263818,-490.0,0.00028453,4]
[366820963,1750474263828,-168.0,0.00028465,2]
[366820964,1750474263839,-1357.693991,0.00028468,8]
[366820965,1750474263849,-1000.0,0.00028493,7]
[366820966,1750474263859,-1000.0,0.00028493,7]
[366820967,1750474263869,-791.61159895,0.00028493,7]
[366820968,1750474263879,-700.0,0.000285,4]
[366820969,1750474263889,-1500.0,0.000285,2]
[366820970,1750474263900,-151.0,0.00028529,2]
[366820971,1750474263910,-31784.47806534,0.00028558,2]
[366820972,1750474263919,-700.0,0.000286,5]
[366820973,1750474263929,-14068.67,0.000286,2]
[366820974,1750474263941,-77149.28,0.000286,7]
[366820975,1750474263951,-490.0,0.00028607,4]
[366820976,1750474263961,-465.05213059,0.00028607,4]
[366820977,1750474263971,-1504.44196967,0.00028616,5]
[366820978,1750474263981,-1503.3465384,0.00028616,5]
[366820979,1750474263991,-13690.37341023,0.00028638,2]
[366820980,1750474264001,-2507.28765781,0.00028664,5]
[366820981,1750474264011,-22182.67136559,0.0002867,2]
[366820982,1750474264021,-587.0,0.00028686,2]
[366820983,1750474264032,-490.0,0.00028689,4]
[366820984,1750474264042,-490.0,0.00028689,4]
[366820985,1750474264056,-1100.35,0.00028689,4]
[366820986,1750474264066,-490.0,0.00028689,4]
[366820987,1750474264077,-953.12,0.00028689,4]
[366820988,1750474264086,-285.08176722,0.00028689,4]
[366820989,1750474264097,-3269.61,0.00028689,4]
[366820990,1750474264107,-552.55,0.00028689,4]
[366820991,1750474264117,-1038.32,0.00028689,4]
[366820992,1750474264129,-913.56,0.00028689,4]
[366820993,1750474264140,-594.23479872,0.00028689,4]
[366820994,1750474264150,-604.1891852,0.00028689,4]
[366820995,1750474264160,-591.39,0.00028689,4]
[366820996,1750474264171,-590.41,0.00028689,4]
[366820997,1750474264181,-490.0,0.00028689,4]
[366820998,1750474264192,-490.0,0.00028689,4]
[366820999,1750474264202,-1449.52,0.00028689,4]
[366821000,1750474264212,-490.0,0.00028689,4]
[366821001,1750474264223,-490.0,0.00028689,4]
[366821002,1750474264233,-697.72,0.00028689,4]
[366821003,1750474264244,-490.0,0.00028689,4]
[366821004,1750474264254,-648.37,0.00028689,4]
[366821005,1750474264265,-490.0,0.00028689,4]
[366821006,1750474264275,-1005.71,0.00028689,4]
[366821007,1750474264286,-684.99,0.00028689,2]
[366821008,1750474264296,-490.0,0.00028689,4]
[366821009,1750474264306,-526.12,0.00028689,4]
[366821010,1750474264318,-490.0,0.00028689,4]
[366821011,1750474264329,-522.32,0.00028689,4]
[366821012,1750474264340,-4046.66,0.00028689,4]
[366821013,1750474264350,-602.57,0.00028689,4]
[366821014,1750474264359,-629.43,0.0002869,4]
[366821015,1750474264370,-490.0,0.0002869,4]
[366821016,1750474264380,-490.0,0.0002869,4]
[366821017,1750474264391,-490.0,0.0002869,4]
[366821018,1750474264400,-490.0,0.0002869,4]
[366821019,1750474264411,-610.49,0.0002869,4]
[366821020,1750474264422,-490.0,0.0002869,4]
[366821021,1750474264435,-490.0,0.0002869,4]
[366821022,1750474264446,-490.0,0.0002869,4]
[366821023,1750474264456,-1757.45,0.000287,2]
[366821024,1750474264466,-2110.0,0.00028719,2]
[366821025,1750474264476,-490.0,0.00028727,4]
[366821026,1750474264486,-490.0,0.00028727,4]
[366821027,1750474264496,-490.0,0.00028727,4]
[366821028,1750474264506,-825.65,0.00028727,4]
[366821029,1750474264516,-1964.92,0.00028727,4]
[366821030,1750474264526,-490.0,0.00028727,4]
[366821031,1750474264536,-560.31,0.00028727,4]
[366821032,1750474264548,-490.0,0.00028727,4]
[366821033,1750474264558,-490.0,0.00028727,4]
[366821034,1750474264568,-860.96,0.00028727,4]
[366821035,1750474264578,-503.75,0.00028727,4]
[366821036,1750474264588,-2249.28,0.00028727,2]
[366821037,1750474264598,-664.46,0.00028727,4]
[366821038,1750474264608,-490.0,0.00028727,4]
[366821039,1750474264618,-490.0,0.00028727,4]
[366821040,1750474264628,-610.22,0.00028727,4]
[366821041,1750474264638,-830.0,0.00028727,4]
[366821042,1750474264648,-490.0,0.00028727,4]
[366821043,1750474264657,-490.0,0.00028727,4]
[366821044,1750474264667,-1694.66,0.00028727,4]
[366821045,1750474264677,-490.0,0.00028727,4]
[366821046,1750474264687,-800.56,0.00028727,4]
[366821047,1750474264697,-490.0,0.00028727,4]
[366821048,1750474264706,-490.0,0.00028727,4]
[366821049,1750474264716,-490.0,0.00028727,4]
[366821050,1750474264725,-490.0,0.00028727,4]
[366821051,1750474264736,-255.372782,0.00028727,4]
[366821052,1750474264746,-490.0,0.00028727,4]
[366821053,1750474264756,-800.16756629,0.00028762,19]
[366821054,1750474264766,-7756.42,0.00028767,2]
[366821055,1750474264775,-150.0,0.00028779,2]
[366821056,1750474264785,-5639.7829303,0.0002878,2]
[366821057,1750474264796,-110855.608805,0.0002878,2]
[366821058,1750474264806,-3871.4367896,0.0002878,2]
[366821059,1750474264815,-1001.57,0.000288,2]
[366821060,1750474264825,-6777.42,0.000288,2]
[366821061,1750474264834,-1561.01,0.000288,2]
[366821062,1750474264844,-1411.36,0.000288,2]
[366821063,1750474264853,-2000.0,0.000288,2]
[366821064,1750474264864,-5707.39,0.000288,2]
[366821065,1750474264873,-150.0,0.00028839,2]
[366821066,1750474264883,-150.0,0.00028862,2]
[366821067,1750474264893,-150.0,0.00028862,2]
[366821068,1750474264903,-150.0,0.00028862,2]
[366821069,1750474264913,-2500.0,0.00028864,5]
[366821070,1750474264923,-170.87,0.00028869,2]
[366821071,1750474264933,-490.0,0.00028881,4]
[366821072,1750474264944,-400.0,0.000289,10]
[366821073,1750474264953,-500.0,0.00028908,7]
[366821074,1750474264963,-500.0,0.00028908,7]
[366821075,1750474264973,-700.0,0.00028908,7]
[366821076,1750474264984,-191.0,0.00028909,2]
[366821077,1750474264995,-22182.67136559,0.00028941,2]
[366821078,1750474265006,-2351.0,0.00028948,2]
[366821079,1750474265017,-490.0,0.00028963,4]
[366821080,1750474265027,-221.01767508,0.00028963,4]
[366821081,1750474265038,-1100.35,0.00028963,4]
[366821082,1750474265051,-490.0,0.00028963,4]
[366821083,1750474265062,-953.12,0.00028963,4]
[366821084,1750474265071,-3269.61,0.00028963,4]
[366821085,1750474265081,-552.55,0.00028963,4]
[366821086,1750474265093,-1038.32,0.00028963,4]
[366821087,1750474265103,-913.56,0.00028963,4]
[366821088,1750474265114,-591.39,0.00028963,4]
[366821089,1750474265126,-590.41,0.00028963,4]
[366821090,1750474265137,-490.0,0.00028963,4]
[366821091,1750474265148,-490.0,0.00028963,4]
[366821092,1750474265158,-1449.52,0.00028963,4]
[366821093,1750474265169,-490.0,0.00028963,4]
[366821094,1750474265181,-490.0,0.00028963,4]
[366821095,1750474265191,-697.72,0.00028963,4]
[366821096,1750474265203,-490.0,0.00028963,4]
[366821097,1750474265215,-648.37,0.00028963,4]
[366821098,1750474265225,-490.0,0.00028963,4]
[366821099,1750474265236,-1005.71,0.00028963,4]
[366821100,1750474265247,-684.99,0.00028963,2]
[366821101,1750474265257,-490.0,0.00028963,4]
[366821102,1750474265267,-526.12,0.00028963,4]
[366821103,1750474265277,-490.0,0.00028963,4]
[366821104,1750474265287,-522.32,0.00028963,4]
[366821105,1750474265297,-4046.66,0.00028963,4]
[366821106,1750474265307,-602.57,0.00028963,4]